fUSD/lending_fUSD_20260130
["ID","MTS","AMOUNT","RATE_DAILY","PERIOD"]
[404072045,1769785842663,-530.17,0.00013698,2]
[404072046,1769785842673,-530.17,0.00013698,2]
[404072047,1769785842684,-530.17,0.00013698,2]
[404072048,1769785842693,-530.17,0.00013698,2]
[404072049,1769785842703,-530.17,0.00013698,2]
[404072050,1769785842713,-530.17,0.00013698,2]
[404072051,1769785842723,-500.0,0.00013698,2]
[404072052,1769785842733,-500.0,0.00013698,2]
[404072053,1769785842743,-500.0,0.00013698,2]
[404072054,1769785842753,-500.0,0.00013698,2]
[404072055,1769785842763,-500.0,0.00013698,2]
[404072056,1769785842773,-500.0,0.00013698,2]
[404072057,1769785842782,-500.0,0.00013698,2]
[404072058,1769785842792,-500.0,0.00013698,2]
[404072059,1769785842801,-500.0,0.00013698,2]
[404072060,1769785842811,-226.21679116,0.00013698,2]
[404072061,1769785842820,-500.0,0.00013698,2]
[404072062,1769785842830,-500.0,0.00013698,2]
[404072063,1769785842839,-500.0,0.00013698,2]
[404072064,1769785842848,-500.0,0.00013698,2]
[404072065,1769785842858,-500.0,0.00013698,2]
[404072066,1769785842868,-500.0,0.00013698,2]
[404072067,1769785842877,-271.3035718,0.00013698,2]
[404072068,1769785842887,-500.0,0.00013698,2]
[404072069,1769785842896,-500.0,0.00013698,2]
[404072070,1769785842905,-500.0,0.00013698,2]
[404072071,1769785842914,-500.0,0.00013698,2]
[404072072,1769785842924,-500.0,0.00013698,2]
[404072073,1769785842934,-500.0,0.00013698,2]
[404072074,1769785842943,-500.0,0.00013698,2]
[404072075,1769785842952,-500.0,0.00013698,2]
[404072076,1769785842962,-385.18354163,0.00013698,2]
[404072077,1769785842972,-500.0,0.00013698,2]
[404072078,1769785842981,-500.0,0.00013698,2]
[404072079,1769785842991,-500.0,0.00013698,2]
[404072080,1769785843000,-500.0,0.00013698,2]
[404072081,1769785843009,-500.0,0.00013698,2]
[404072082,1769785843019,-500.0,0.00013698,2]
[404072083,1769785843028,-500.0,0.00013698,2]
[404072084,1769785843037,-500.0,0.00013698,2]
[404072085,1769785843046,-500.0,0.00013698,2]
[404072086,1769785843055,-500.0,0.00013698,2]
[404072087,1769785843065,-500.0,0.00013698,2]
[404072088,1769785843075,-500.0,0.00013698,2]
[404072089,1769785843084,-370.45918944,0.00013698,2]
[404072090,1769785843094,-500.0,0.00013698,2]
[404072091,1769785843104,-326.23818299,0.00013698,2]
[404072092,1769785843113,-502.11575154,0.00013698,2]
[404072093,1769785843122,-500.0,0.00013698,2]
[404072094,1769785843133,-500.0,0.00013698,2]
[404072095,1769785843142,-326.5559361,0.00013698,2]
[404072096,1769785843153,-500.0,0.00013698,2]
[404072097,1769785843164,-500.0,0.00013698,2]
[404072098,1769785843173,-500.0,0.00013698,2]
[404072099,1769785843186,-500.0,0.00013698,2]
[404072100,1769785843196,-500.0,0.00013698,2]
[404072101,1769785843206,-500.0,0.00013698,2]
[404072102,1769785843215,-500.0,0.00013698,2]
[404072103,1769785843224,-294.00680809,0.00013698,2]
[404072104,1769785843233,-200.0,0.00013699,2]
[404072105,1769785843243,-500.0,0.00013699,2]
[404072106,1769785843254,-500.0,0.00013699,2]
[404072107,1769785843265,-500.0,0.00013699,2]
[404072108,1769785843275,-261.02783056,0.00013699,2]
[404072109,1769785843290,-364.0,0.00013703,2]
[404072110,1769785843299,-500.0,0.00013726,2]
[404072111,1769785843308,-366.0,0.00013731,2]
[404072112,1769785843318,-256.0,0.00013758,2]
[404072113,1769785843328,-500.0,0.00013781,2]
[404072114,1769785843340,-325.0,0.00013785,2]
[404072115,1769785843350,-490.0,0.00013813,2]
[404072116,1769785843359,-500.0,0.00013835,2]
[404072117,1769785843371,-325.0,0.0001384,2]
[404072118,1769785843381,-1671.0,0.00013852,2]
[404072119,1769785843390,-221.67,0.00013872,2]
[404072120,1769785843399,-877.0,0.00013879,2]
[404072121,1769785843409,-500.0,0.00013888,2]
[404072122,1769785843424,-200.0,0.00013888,2]
[404072123,1769785843436,-200.0,0.00013888,2]
[404072124,1769785843446,-815.61,0.00013888,2]
[404072125,1769785843455,-500.0,0.0001389,2]
[404072126,1769785843466,-500.0,0.00013895,2]
[404072127,1769785843475,-504.0,0.00013907,2]
[404072128,1769785843485,-1591.0,0.00013935,2]
[404072129,1769785843497,-289.8103178,0.00013945,2]
[404072130,1769785843508,-737.0,0.00013962,2]
[404072131,1769785843517,-1929.0,0.0001399,2]
[404072132,1769785843526,-1205.0,0.00014018,2]
[404072133,1769785843535,-1839.0,0.00014045,2]
[404072134,1769785843546,-813.0,0.00014073,2]
[404072135,1769785843556,-1265.0,0.000141,2]
[404072136,1769785843566,-1785.0,0.00014128,2]
[404072137,1769785843577,-465.0,0.00014156,2]
[404072138,1769785843587,-815.61,0.00014162,2]
[404072139,1769785843597,-500.0,0.00014168,2]
[404072140,1769785843607,-360.0,0.00014183,2]
[404072141,1769785843617,-434.79,0.00014196,2]
[404072142,1769785843627,-255.0,0.00014208,2]
[404072143,1769785843637,-1255.0,0.00014211,2]
[404072144,1769785843646,-1302.0,0.00014239,2]
[404072145,1769785843656,-151.0,0.00014286,2]
[404072146,1769785843666,-15322.16997128,0.00014308,2]
[404072147,1769785843677,-11266.93342123,0.00014308,2]
[404072148,1769785843686,-291.51281962,0.00014323,2]
[404072149,1769785843696,-193.0,0.00014323,2]
[404072150,1769785843705,-600.0,0.00014323,2]
[404072151,1769785843715,-600.0,0.00014323,2]
[404072152,1769785843724,-600.0,0.00014323,2]
[404072153,1769785843734,-478.64857644,0.00014323,2]
[404072154,1769785843745,-500.0,0.00014323,2]
[404072155,1769785843754,-300.0,0.00014323,2]
[404072156,1769785843764,-2500.0,0.00014323,2]
[404072158,1769785843773,-250.0,0.00014323,2]
[404072160,1769785843783,-420.0,0.00014359,2]
[404072162,1769785843792,-1680.0,0.00014404,2]
[404072164,1769785843802,-250.0,0.00014405,2]
[404072167,1769785843812,-250.0,0.00014405,2]
[404072170,1769785843821,-500.0,0.00014436,2]
[404072172,1769785843830,-200.0,0.00014436,2]
[404072174,1769785843839,-200.0,0.00014436,2]
[404072176,1769785843849,-815.61,0.00014436,2]
[404072178,1769785843859,-500.0,0.00014442,2]
[404072179,1769785843868,-815.62649203,0.0001471,2]
[404072180,1769785843878,-500.0,0.00014716,2]
[404072181,1769785843887,-687.28076993,0.00014749,2]
[404072182,1769785843897,-1813.74482569,0.00014749,2]
[404072183,1769785843907,-500.0,0.00014984,2]
[404072184,1769785843917,-200.0,0.00014984,2]
[404072185,1769785843926,-244.43530043,0.00014984,2]
[404072186,1769785843938,-479.1,0.00015013,2]
[404072188,1769785843947,-221.67,0.00015133,2]
[404072190,1769785843956,-196.88,0.00015249,2]
[404072191,1769785843966,-353.41,0.00015399,2]
[404072192,1769785843975,-433.0,0.00015413,2]
[404072193,1769785843985,-500.0,0.00015532,2]
[404072194,1769785843996,-15322.16997128,0.0001562,2]
[404072195,1769785844006,-11266.93342123,0.0001562,2]
[404072196,1769785844015,-587.0,0.00015746,2]
[404072197,1769785844025,-2351.0,0.00015845,2]
[404072198,1769785844034,-721.72,0.00015918,2]
[404072199,1769785844044,-652.99854233,0.0001596,2]
[404072200,1769785844053,-3404.72,0.00016116,2]
[404072201,1769785844064,-3199.66086256,0.00016249,2]
[404072202,1769785844074,-500.0,0.00016373,2]
[404072203,1769785844093,-500.0,0.00016373,2]
[404072204,1769785844103,-568.87365999,0.00016373,2]
[404072205,1769785844114,-500.0,0.00016373,2]
[404072206,1769785844125,-500.0,0.00016373,2]
[404072207,1769785844136,-500.0,0.00016373,2]
[404072208,1769785844147,-164.62391136,0.00016373,2]
[404072209,1769785844157,-558.9380785,0.00016373,2]
[404072210,1769785844167,-500.0,0.00016373,2]
[404072211,1769785844177,-160.21744138,0.00016373,2]
[404072212,1769785844186,-500.0,0.00016373,2]
[404072213,1769785844196,-177.64323639,0.00016373,2]
[404072214,1769785844205,-500.0,0.00016373,2]
[404072215,1769785844215,-500.0,0.00016373,2]
[404072216,1769785844224,-500.0,0.00016373,2]
[404072217,1769785844233,-500.0,0.00016373,2]
[404072218,1769785844243,-225.37911043,0.00016373,2]
[404072219,1769785844252,-500.0,0.00016373,2]
[404072220,1769785844262,-160.21943413,0.00016373,2]
[404072221,1769785844271,-160.32431704,0.00016373,2]
[404072222,1769785844281,-500.0,0.00016373,2]
[404072223,1769785844291,-217.57575976,0.00016373,2]
[404072224,1769785844300,-500.0,0.00016373,2]
[404072225,1769785844310,-500.0,0.00016373,2]
[404072226,1769785844319,-500.0,0.00016373,2]
[404072227,1769785844328,-500.0,0.00016373,2]
[404072228,1769785844338,-500.0,0.00016373,2]
[404072229,1769785844348,-500.0,0.00016373,2]
[404072230,1769785844358,-239.55126374,0.00016373,2]
[404072231,1769785844368,-169.60462217,0.00016373,2]
[404072232,1769785844379,-500.0,0.00016373,2]
[404072233,1769785844388,-500.0,0.00016373,2]
[404072234,1769785844397,-500.0,0.00016373,2]
[404072235,1769785844407,-500.0,0.00016373,2]
[404072236,1769785844421,-500.0,0.00016373,2]
[404072237,1769785844430,-163.00594696,0.00016373,2]
[404072238,1769785844444,-500.0,0.00016373,2]
[404072239,1769785844455,-500.0,0.00016373,2]
[404072240,1769785844466,-166.21493216,0.00016373,2]
[404072241,1769785844477,-503.15498018,0.00016373,2]
[404072242,1769785844487,-500.0,0.00016373,2]
[404072243,1769785844499,-500.60369246,0.00016373,2]
[404072244,1769785844508,-500.0,0.00016373,2]
[404072245,1769785844519,-500.0,0.00016373,2]
[404072246,1769785844530,-500.0,0.00016373,2]
[404072247,1769785844540,-500.0,0.00016373,2]
[404072248,1769785844550,-500.0,0.00016373,2]
[404072249,1769785844559,-500.0,0.00016373,2]
[404072250,1769785844570,-500.0,0.00016373,2]
[404072251,1769785844580,-500.0,0.00016373,2]
[404072252,1769785844589,-500.0,0.00016373,2]
[404072253,1769785844599,-221.67,0.00016394,2]
[404072254,1769785844609,-165.0,0.000164,2]
[404072255,1769785844619,-2000.0,0.00016438,2]
[404072256,1769785844629,-772.81,0.00016438,2]
[404072257,1769785844643,-806.5,0.00016438,2]
[404072258,1769785844652,-500.0,0.00016438,2]
[404072259,1769785844662,-500.0,0.00016438,2]
[404072260,1769785844672,-500.0,0.00016438,2]
[404072261,1769785844683,-431.19649282,0.00016438,2]
[404072262,1769785844693,-721.72,0.00016515,2]
[404072263,1769785844703,-2339.0,0.000166,2]
[404072264,1769785844713,-772.81,0.00016712,2]
[404072265,1769785844723,-736.0,0.00016722,2]
[404072266,1769785844733,-1000.0,0.00016921,2]
[404072267,1769785844742,-500.4902994,0.00016921,2]
[404072268,1769785844753,-541.28684359,0.00016921,2]
[404072269,1769785844763,-500.86269689,0.00016921,2]
[404072270,1769785844773,-503.09870012,0.00016921,2]
[404072271,1769785844784,-1000.0,0.00016921,2]
[404072272,1769785844795,-1000.0,0.00016921,2]
[404072273,1769785844806,-504.68661395,0.00016921,2]
[404072274,1769785844816,-1000.0,0.00016921,2]
[404072275,1769785844827,-500.0,0.00016921,2]
[404072276,1769785844841,-1000.0,0.00016921,2]
[404072277,1769785844851,-1000.0,0.00016921,2]
[404072278,1769785844861,-1000.0,0.00016921,2]
[404072279,1769785844871,-1000.0,0.00016921,2]
[404072280,1769785844882,-877.26188408,0.00016921,2]
[404072281,1769785844892,-459.6118856,0.00016921,2]
[404072282,1769785844901,-203.98074386,0.00016921,2]
[404072283,1769785844911,-1000.0,0.00016921,2]
[404072284,1769785844921,-1000.0,0.00016921,2]
[404072285,1769785844930,-1000.0,0.00016921,2]
[404072286,1769785844940,-1009.36195064,0.00016921,2]
[404072287,1769785844950,-500.0,0.00016921,2]
[404072288,1769785844960,-1000.0,0.00016921,2]
[404072289,1769785844971,-1000.28855452,0.00016921,2]
[404072290,1769785844982,-1000.0,0.00016921,2]
[404072291,1769785844992,-1000.0,0.00016921,2]
[404072292,1769785845003,-1000.91709451,0.00016921,2]
[404072293,1769785845013,-1000.0,0.00016921,2]
[404072294,1769785845023,-1000.0,0.00016921,2]
[404072295,1769785845036,-1000.0,0.00016921,2]
[404072296,1769785845047,-804.05633745,0.00016921,2]
[404072297,1769785845056,-401.53067419,0.00016921,2]
[404072298,1769785845066,-490.28446551,0.00016921,2]
[404072299,1769785845076,-1000.81154381,0.00016921,2]
[404072300,1769785845087,-1000.79205538,0.00016921,2]
[404072301,1769785845097,-15322.16997128,0.00016931,2]
[404072302,1769785845107,-11266.93342123,0.00016931,2]
[404072303,1769785845119,-772.81,0.00016985,2]
[404072304,1769785845130,-163.0,0.0001704,2]
[404072305,1769785845140,-163.0,0.0001704,2]
[404072306,1769785845150,-2828.0,0.0001704,2]
[404072307,1769785845162,-721.72,0.00017112,2]
[404072308,1769785845172,-772.81,0.00017259,2]
[404072309,1769785845183,-823.0,0.00017266,2]
[404072310,1769785845194,-1774.63404526,0.00017269,2]
[404072311,1769785845203,-250.0,0.00017303,2]
[404072312,1769785845214,-2833.0,0.0001736,2]
[404072313,1769785845228,-3292.0,0.00017429,2]
[404072314,1769785845238,-1500.0,0.00017468,2]
[404072315,1769785845249,-580.80754144,0.00017468,2]
[404072316,1769785845258,-1000.8272521,0.00017468,2]
[404072317,1769785845269,-1500.0,0.00017468,2]
[404072318,1769785845278,-1505.10384072,0.00017468,2]
[404072319,1769785845288,-1500.0,0.00017468,2]
[404072320,1769785845298,-1500.0,0.00017468,2]
[404072321,1769785845308,-1500.0,0.00017468,2]
[404072322,1769785845319,-1500.0,0.00017468,2]
[404072323,1769785845330,-656.65111135,0.00017468,2]
[404072324,1769785845341,-1000.73878486,0.00017468,2]
[404072325,1769785845352,-1000.71065871,0.00017468,2]
[404072326,1769785845362,-1500.0,0.00017468,2]
[404072327,1769785845372,-206.11887871,0.00017468,2]
[404072328,1769785845382,-1500.0,0.00017468,2]
[404072329,1769785845392,-2694.0,0.00017473,2]
[404072330,1769785845402,-158.77663044,0.0001749,2]
[404072331,1769785845414,-2694.0,0.00017495,2]
[404072332,1769785845424,-5532.0,0.000175,3]
[404072333,1769785845438,-772.81,0.00017533,2]
[404072334,1769785845448,-2694.0,0.00017606,2]
[404072335,1769785845460,-2694.0,0.00017615,2]
[404072336,1769785845469,-500.0,0.00017654,2]
[404072337,1769785845479,-530.17,0.00017654,2]
[404072338,1769785845491,-436.47012991,0.00017654,2]
[404072339,1769785845501,-221.67,0.00017655,2]
[404072340,1769785845512,-163.0,0.0001768,2]
[404072341,1769785845522,-2833.0,0.0001768,2]
[404072342,1769785845533,-2694.0,0.00017695,2]
[404072345,1769785845543,-721.72,0.00017709,2]
[404072347,1769785845552,-2694.0,0.00017734,2]
[404072349,1769785845562,-2694.0,0.00017752,2]
[404072352,1769785845573,-806.5,0.00017758,2]
[404072354,1769785845583,-772.81,0.00017807,2]
[404072356,1769785845594,-1270.0,0.00017908,2]
[404072358,1769785845604,-1204.0,0.00017914,2]
[404072360,1769785845614,-916.0,0.00017914,2]
[404072362,1769785845624,-5933.0,0.00017914,2]
[404072364,1769785845634,-567.0,0.00017914,2]
[404072366,1769785845643,-2444.0,0.00017914,2]
[404072368,1769785845653,-500.0,0.00017973,2]
[404072370,1769785845663,-500.0,0.00017973,2]
[404072372,1769785845673,-500.0,0.00017973,2]
[404072373,1769785845685,-208.33059439,0.00017973,2]
[404072374,1769785845695,-500.0,0.00017973,2]
[404072375,1769785845705,-500.0,0.00017973,2]
[404072376,1769785845715,-500.0,0.00017973,2]
[404072377,1769785845726,-161.90727761,0.00017973,2]
[404072378,1769785845737,-500.0,0.00017973,2]
[404072379,1769785845747,-500.0,0.00017973,2]
[404072380,1769785845757,-500.2342072,0.00017973,2]
[404072381,1769785845767,-500.0,0.00017973,2]
[404072382,1769785845777,-500.0,0.00017973,2]
[404072383,1769785845787,-500.0,0.00017973,2]
[404072384,1769785845797,-500.0,0.00017973,2]
[404072385,1769785845807,-500.0,0.00017973,2]
[404072386,1769785845817,-500.0,0.00017973,2]
[404072387,1769785845828,-500.0,0.00017973,2]
[404072388,1769785845849,-150.0,0.00017973,2]
[404072389,1769785845859,-500.0,0.00017973,2]
[404072390,1769785845869,-160.13080306,0.00017973,2]
[404072391,1769785845881,-500.0,0.00017973,2]
[404072392,1769785845893,-160.23001291,0.00017973,2]
[404072393,1769785845903,-500.0,0.00017973,2]
[404072394,1769785845913,-500.0,0.00017973,2]
[404072395,1769785845923,-500.0,0.00017973,2]
[404072396,1769785845935,-158.22969695,0.00017973,2]
[404072397,1769785845944,-432.02224032,0.00017973,2]
[404072398,1769785845955,-210.27851574,0.00017973,2]
[404072399,1769785845965,-333.51196878,0.00017973,2]
[404072400,1769785845975,-161.46714206,0.00017973,2]
[404072401,1769785845985,-501.03562757,0.00017973,2]
[404072402,1769785845996,-160.00319068,0.00017973,2]
[404072403,1769785846006,-340.31348241,0.00017973,2]
[404072404,1769785846017,-500.78976485,0.00017973,2]
[404072405,1769785846028,-500.0,0.00017973,2]
[404072406,1769785846039,-500.0,0.00017973,2]
[404072407,1769785846049,-500.0,0.00017973,2]
[404072408,1769785846061,-163.36858583,0.00017973,2]
[404072409,1769785846072,-500.0,0.00017973,2]
[404072410,1769785846082,-151.06501544,0.00017973,2]
[404072411,1769785846093,-500.0,0.00017973,2]
[404072412,1769785846103,-175.57287607,0.00017973,2]
[404072413,1769785846113,-500.63516671,0.00017973,2]
[404072414,1769785846122,-500.0,0.00017973,2]
[404072415,1769785846132,-500.0,0.00017973,2]
[404072416,1769785846141,-500.0,0.00017973,2]
[404072417,1769785846151,-500.0,0.00017973,2]
[404072418,1769785846161,-500.0,0.00017973,2]
[404072419,1769785846171,-500.0,0.00017973,2]
[404072420,1769785846183,-500.0,0.00017973,2]
[404072421,1769785846193,-500.0,0.00017973,2]
[404072422,1769785846202,-500.0,0.00017973,2]
[404072423,1769785846215,-160.11295309,0.00017973,2]
[404072424,1769785846225,-161.13076084,0.00017973,2]
[404072425,1769785846235,-509.35254647,0.00017973,2]
[404072426,1769785846246,-500.0,0.00017973,2]
[404072427,1769785846256,-162.64188199,0.00017973,2]
[404072428,1769785846267,-162.07893444,0.00017973,2]
[404072429,1769785846277,-309.21369256,0.00017973,2]
[404072430,1769785846286,-208.78313746,0.00017973,2]
[404072431,1769785846298,-500.0,0.00017973,2]
[404072432,1769785846307,-392.26050896,0.00017973,2]
[404072433,1769785846317,-500.0,0.00017973,2]
[404072434,1769785846327,-500.0,0.00017973,2]
[404072435,1769785846337,-500.0,0.00017973,2]
[404072436,1769785846346,-512.27368738,0.00017973,2]
[404072437,1769785846356,-500.0,0.00017973,2]
[404072438,1769785846366,-500.0,0.00017973,2]
[404072439,1769785846375,-500.0,0.00017973,2]
[404072440,1769785846385,-500.0,0.00017973,2]
[404072441,1769785846394,-500.0,0.00017973,2]
[404072442,1769785846404,-500.0,0.00017973,2]
[404072443,1769785846415,-500.0,0.00017973,2]
[404072444,1769785846426,-500.0,0.00017973,2]
[404072445,1769785846438,-165.89161412,0.00017973,2]
[404072446,1769785846449,-500.42764262,0.00017973,2]
[404072447,1769785846459,-500.29869688,0.00017973,2]
[404072448,1769785846469,-164.73666016,0.00017973,2]
[404072449,1769785846478,-284.37159555,0.00017973,2]
[404072450,1769785846488,-500.0,0.00017973,2]
[404072451,1769785846498,-500.0,0.00017973,2]
[404072452,1769785846508,-2694.0,0.00017974,2]
[404072453,1769785846519,-2694.0,0.00017981,2]
[404072454,1769785846530,-2000.0,0.00018016,2]
[404072455,1769785846540,-500.0,0.00018016,2]
[404072456,1769785846551,-1325.64130309,0.00018016,2]
[404072457,1769785846561,-503.29314635,0.00018016,2]
[404072458,1769785846572,-613.56434793,0.00018016,2]
[404072459,1769785846583,-2000.0,0.00018016,2]
[404072460,1769785846593,-2694.0,0.00018034,2]
[404072461,1769785846604,-772.81,0.00018081,2]
[404072462,1769785846618,-757.6087095,0.00018093,2]
[404072464,1769785846905,-500.0,0.00018131,3]
[404072465,1769785846949,-1252.0,0.0001815,2]
[404072466,1769785846959,-2694.0,0.0001815,2]
[404072467,1769785846968,-150.0,0.00018158,2]
[404072468,1769785846977,-150.0,0.00018158,2]
[404072469,1769785846986,-150.0,0.00018158,2]
[404072470,1769785846996,-150.101,0.00018158,2]
[404072471,1769785847005,-150.0,0.00018158,2]
[404072472,1769785847015,-150.184,0.00018158,2]
[404072473,1769785847025,-150.0,0.00018158,2]
[404072474,1769785847034,-616.0,0.00018158,2]
[404072475,1769785847043,-3490.571,0.00018158,2]
[404072476,1769785847053,-2833.0,0.00018202,2]
[404072477,1769785847062,-15322.16997128,0.00018243,2]
[404072478,1769785847071,-11266.93342123,0.00018243,2]
[404072479,1769785847081,-721.72,0.00018306,2]
[404072480,1769785847091,-2694.0,0.00018333,2]
[404072481,1769785847100,-714.44,0.00018355,2]
[404072482,1769785847111,-5648.25,0.00018356,2]
[404072483,1769785847121,-5532.0,0.000184,5]
[404072484,1769785847131,-2694.0,0.00018405,2]
[404072485,1769785847142,-2694.0,0.00018444,2]
[404072486,1769785847153,-2694.0,0.00018496,2]
[404072487,1769785847162,-200.0,0.0001851,2]
[404072488,1769785847172,-1000.0,0.00018521,2]
[404072489,1769785847182,-269.36047624,0.00018521,2]
[404072490,1769785847192,-1000.0,0.00018521,2]
[404072491,1769785847201,-535.85460388,0.00018521,2]
[404072492,1769785847211,-1000.0,0.00018521,2]
[404072493,1769785847221,-505.87219837,0.00018521,2]
[404072494,1769785847232,-524.93995843,0.00018521,2]
[404072495,1769785847242,-1000.0,0.00018521,2]
[404072496,1769785847252,-1000.0,0.00018521,2]
[404072497,1769785847261,-1000.0,0.00018521,2]
[404072498,1769785847272,-803.73051813,0.00018521,2]
[404072499,1769785847285,-1003.05950792,0.00018521,2]
[404072500,1769785847295,-1000.0,0.00018521,2]
[404072501,1769785847305,-1000.0,0.00018521,2]
[404072502,1769785847314,-1002.15998223,0.00018521,2]
[404072503,1769785847324,-150.0,0.00018521,2]
[404072504,1769785847334,-1000.0,0.00018521,2]
[404072505,1769785847344,-1000.0,0.00018521,2]
[404072506,1769785847354,-1000.0,0.00018521,2]
[404072507,1769785847363,-1003.90960822,0.00018521,2]
[404072508,1769785847373,-1000.0,0.00018521,2]
[404072509,1769785847383,-1000.0,0.00018521,2]
[404072510,1769785847392,-501.71313812,0.00018521,2]
[404072511,1769785847402,-1000.0,0.00018521,2]
[404072512,1769785847412,-1000.0,0.00018521,2]
[404072513,1769785847424,-1000.0,0.00018521,2]
[404072514,1769785847434,-1000.0,0.00018521,2]
[404072515,1769785847444,-1002.36550973,0.00018521,2]
[404072516,1769785847455,-1000.0,0.00018521,2]
[404072517,1769785847466,-1000.0,0.00018521,2]
[404072518,1769785847475,-1000.0,0.00018521,2]
[404072519,1769785847484,-1000.0,0.00018521,2]
[404072520,1769785847496,-1000.0,0.00018521,2]
[404072521,1769785847506,-1000.0,0.00018521,2]
[404072522,1769785847516,-393.88604428,0.00018521,2]
[404072523,1769785847526,-1001.7423367,0.00018521,2]
[404072524,1769785847536,-1000.0,0.00018521,2]
[404072525,1769785847547,-1000.0,0.00018521,2]
[404072526,1769785847557,-1000.0,0.00018521,2]
[404072527,1769785847568,-1000.0,0.00018521,2]
[404072528,1769785847579,-1000.0,0.00018521,2]
[404072529,1769785847589,-501.3344838,0.00018521,2]
[404072530,1769785847600,-1000.0,0.00018521,2]
[404072531,1769785847610,-1000.0,0.00018521,2]
[404072532,1769785847620,-1093.37800921,0.00018521,2]
[404072533,1769785847630,-1000.0,0.00018521,2]
[404072534,1769785847640,-1000.0,0.00018521,2]
[404072535,1769785847650,-502.00704372,0.00018521,2]
[404072536,1769785847660,-1000.0,0.00018521,2]
[404072537,1769785847670,-563.6024582,0.00018521,2]
[404072538,1769785847685,-1971.97230181,0.00018564,2]
[404072539,1769785847694,-879.8166914,0.00018564,2]
[404072540,1769785847704,-2694.0,0.00018568,2]
[404072541,1769785847713,-367.03008261,0.00018657,2]
[404072542,1769785847723,-2694.0,0.00018693,2]
[404072543,1769785847733,-479.1,0.00018704,2]
[404072544,1769785847743,-2694.0,0.00018723,2]
[404072545,1769785847752,-2694.0,0.00018742,2]
[404072546,1769785847762,-2694.0,0.00018757,2]
[404072547,1769785847772,-2694.0,0.00018837,2]
[404072548,1769785847781,-17663.79580121,0.000189,2]
[404072549,1769785847791,-221.67,0.00018916,2]
[404072550,1769785847801,-2694.0,0.00018921,2]
[404072551,1769785847810,-1152.0,0.00018934,2]
[404072552,1769785847820,-500.0,0.00018959,2]
[404072553,1769785847830,-162.01453578,0.00018968,3]
[404072554,1769785847840,-2999.11075541,0.00018968,2]
[404072555,1769785847850,-2694.0,0.0001906,2]
[404072556,1769785847861,-500.0,0.00019068,2]
[404072557,1769785847872,-530.17,0.00019068,2]
[404072558,1769785847881,-1500.0,0.00019068,2]
[404072559,1769785847892,-1003.32803614,0.00019068,2]
[404072560,1769785847903,-1500.0,0.00019068,2]
[404072561,1769785847913,-501.82931453,0.00019068,2]
[404072562,1769785847923,-1500.0,0.00019068,2]
[404072563,1769785847934,-1500.0,0.00019068,2]
[404072564,1769785847944,-1500.0,0.00019068,2]
[404072565,1769785847954,-1403.11901333,0.00019068,2]
[404072566,1769785847963,-237.74347916,0.00019068,2]
[404072567,1769785847974,-1500.0,0.00019068,2]
[404072568,1769785847984,-288.05199057,0.00019068,2]
[404072569,1769785847994,-1500.0,0.00019068,2]
[404072570,1769785848004,-1500.0,0.00019068,2]
[404072571,1769785848015,-502.7983438,0.00019068,2]
[404072572,1769785848025,-1500.0,0.00019068,2]
[404072573,1769785848035,-1500.0,0.00019068,2]
[404072574,1769785848044,-1503.64430583,0.00019068,2]
[404072575,1769785848054,-195.80691697,0.00019068,2]